[Event "*** Titled Tuesday Blitz"]
[Site "Chess.com"]
[Date "2020.12.01"]
[Round "2"]
[White "PowerThinking2650"]
[Black "ecwinslow"]
[Result "1-0"]
[WhiteElo "2436"]
[BlackElo "2227"]
[TimeControl "180+1"]
[EndTime "10:17:38 PST"]
[Termination "PowerThinking2650 won by resignation"]

1. e4 {[%clk 0:03:00.6]} 1... c5 {[%clk 0:02:59.4]} 2. Nf3 {[%clk 0:03:00.2]}
2... d6 {[%clk 0:02:59.5]} 3. d4 {[%clk 0:03:00.8]} 3... cxd4 {[%clk 0:03:00]}
4. Nxd4 {[%clk 0:03:01.7]} 4... Nf6 {[%clk 0:02:59.8]} 5. Nc3 {[%clk 0:03:02.3]}
5... a6 {[%clk 0:03:00.1]} 6. Bc4 {[%clk 0:03:02.1]} 6... e6 {[%clk 0:02:59.2]}
7. O-O {[%clk 0:02:57.3]} 7... Qc7 {[%clk 0:02:51.7]} 8. Bb3 {[%clk 0:02:56.4]}
8... Nc6 {[%clk 0:02:51.8]} 9. Be3 {[%clk 0:02:53.9]} 9... Be7 {[%clk
0:02:50.5]} 10. f4 {[%clk 0:02:53.5]} 10... O-O {[%clk 0:02:48.7]} 11. f5 {[%clk
0:02:53.9]} 11... Nxd4 {[%clk 0:02:43.1]} 12. Bxd4 {[%clk 0:02:54.8]} 12... b5
{[%clk 0:02:40]} 13. a3 {[%clk 0:02:48.2]} 13... e5 {[%clk 0:02:33.5]} 14. Be3
{[%clk 0:02:47.5]} 14... Bb7 {[%clk 0:02:34.1]} 15. Qf3 {[%clk 0:02:34.1]} 15...
Rac8 {[%clk 0:02:18.3]} 16. Bg5 {[%clk 0:02:32.3]} 16... a5 {[%clk 0:02:13.6]}
17. Bxf6 {[%clk 0:02:31.8]} 17... Bxf6 {[%clk 0:02:13.2]} 18. Rf2 {[%clk
0:02:12.9]} 18... Qb6 {[%clk 0:02:03.6]} 19. Bd5 {[%clk 0:02:07]} 19... Rxc3
{[%clk 0:01:30.4]} 20. Qxc3 {[%clk 0:01:55]} 20... Bxd5 {[%clk 0:01:30.3]} 21.
exd5 {[%clk 0:01:55.8]} 21... e4 {[%clk 0:01:30.7]} 22. Qc6 {[%clk 0:01:48.5]}
22... Bd4 {[%clk 0:01:28.5]} 23. Qxb6 {[%clk 0:01:48.3]} 23... Bxb6 {[%clk
0:01:28.2]} 24. g4 {[%clk 0:01:28.7]} 24... Rc8 {[%clk 0:01:26.5]} 25. c3 {[%clk
0:01:28.2]} 25... Rc4 {[%clk 0:01:22.6]} 26. h3 {[%clk 0:01:17.3]} 26... h5
{[%clk 0:01:21.2]} 27. Kg2 {[%clk 0:01:08.8]} 27... Bxf2 {[%clk 0:01:19.8]} 28.
Kxf2 {[%clk 0:01:09.7]} 28... hxg4 {[%clk 0:01:19.1]} 29. hxg4 {[%clk
0:01:10.6]} 29... e3+ {[%clk 0:01:16.2]} 30. Kf3 {[%clk 0:01:09.3]} 30... b4
{[%clk 0:01:10.6]} 31. axb4 {[%clk 0:01:08.5]} 31... axb4 {[%clk 0:01:10.9]} 32.
Ra8+ {[%clk 0:01:01.5]} 32... Kh7 {[%clk 0:01:10]} 33. Ra4 {[%clk 0:01:02.1]}
33... e2 {[%clk 0:01:01.5]} 34. Kxe2 {[%clk 0:00:57.8]} 34... Rxg4 {[%clk
0:01:00.1]} 35. Rxb4 {[%clk 0:00:55.4]} 35... Rg2+ {[%clk 0:00:55]} 36. Kf3
{[%clk 0:00:52.5]} 36... Rd2 {[%clk 0:00:54.1]} 37. c4 {[%clk 0:00:50.9]} 37...
Kh6 {[%clk 0:00:54.3]} 38. Rb7 {[%clk 0:00:46.5]} 38... Kg5 {[%clk 0:00:48.5]}
39. Ke3 {[%clk 0:00:30.7]} 39... Rh2 {[%clk 0:00:41]} 40. b4 {[%clk 0:00:29.1]}
40... Kxf5 {[%clk 0:00:39.7]} 41. Rxf7+ {[%clk 0:00:28.8]} 41... Ke5 {[%clk
0:00:40]} 42. Re7+ {[%clk 0:00:28.8]} 42... Kf5 {[%clk 0:00:40.2]} 43. Re6
{[%clk 0:00:28.5]} 43... Rh3+ {[%clk 0:00:34.6]} 44. Kd4 {[%clk 0:00:28.6]}
44... Rh4+ {[%clk 0:00:34.5]} 45. Kd3 {[%clk 0:00:28.7]} 45... g5 {[%clk
0:00:34.5]} 46. Rxd6 {[%clk 0:00:28.4]} 46... g4 {[%clk 0:00:32.5]} 47. Rd8
{[%clk 0:00:27.6]} 47... g3 {[%clk 0:00:31.8]} 48. Rf8+ {[%clk 0:00:27.2]} 48...
Kg4 {[%clk 0:00:30.5]} 49. d6 {[%clk 0:00:24.8]} 49... g2 {[%clk 0:00:30]} 50.
Rg8+ {[%clk 0:00:23.4]} 50... Kf3 {[%clk 0:00:29.6]} 51. Rxg2 {[%clk 0:00:21.9]}
51... Kxg2 {[%clk 0:00:29]} 52. d7 {[%clk 0:00:22.3]} 52... Rh8 {[%clk
0:00:25.7]} 53. c5 {[%clk 0:00:22.5]} 53... Kf3 {[%clk 0:00:24.9]} 54. c6 {[%clk
0:00:22.7]} 1-0

[Event "*** Titled Tuesday Blitz"]
[Site "Chess.com"]
[Date "2020.12.01"]
[Round "2"]
[White "esapunov"]
[Black "FontVella8"]
[Result "1-0"]
[WhiteElo "2805"]
[BlackElo "2507"]
[TimeControl "180+1"]
[EndTime "10:17:39 PST"]
[Termination "esapunov won by resignation"]

1. c4 {[%clk 0:03:00.6]} 1... e5 {[%clk 0:02:59.1]} 2. Nf3 {[%clk 0:03:00.1]}
2... d6 {[%clk 0:02:59.2]} 3. Nc3 {[%clk 0:02:59.9]} 3... Nc6 {[%clk 0:02:58.9]}
4. d3 {[%clk 0:03:00.1]} 4... Be6 {[%clk 0:02:54.7]} 5. g3 {[%clk 0:02:59.2]}
5... Qd7 {[%clk 0:02:53.4]} 6. Ng5 {[%clk 0:02:56.1]} 6... Bf5 {[%clk
0:02:50.4]} 7. e4 {[%clk 0:02:53.6]} 7... Bg6 {[%clk 0:02:49.9]} 8. Bh3 {[%clk
0:02:52.4]} 8... Qd8 {[%clk 0:02:43.6]} 9. f4 {[%clk 0:02:51.3]} 9... exf4
{[%clk 0:02:35.1]} 10. gxf4 {[%clk 0:02:50.5]} 10... Be7 {[%clk 0:02:34.2]} 11.
O-O {[%clk 0:02:42.2]} 11... Bxg5 {[%clk 0:02:28]} 12. fxg5 {[%clk 0:02:42.1]}
12... Nge7 {[%clk 0:02:24.6]} 13. Bg4 {[%clk 0:02:35.9]} 13... Ne5 {[%clk
0:02:18.2]} 14. Bh3 {[%clk 0:02:33.2]} 14... c6 {[%clk 0:02:04.3]} 15. Be3
{[%clk 0:02:30.7]} 15... O-O {[%clk 0:01:38.6]} 16. b3 {[%clk 0:02:30.1]} 16...
d5 {[%clk 0:01:29.8]} 17. Bf4 {[%clk 0:02:05.5]} 17... Nd7 {[%clk 0:01:06.6]}
18. exd5 {[%clk 0:01:51.3]} 18... cxd5 {[%clk 0:01:03.3]} 19. Bg2 {[%clk
0:01:50.6]} 19... d4 {[%clk 0:00:47.9]} 20. Na4 {[%clk 0:01:42.1]} 20... Nc6
{[%clk 0:00:41.8]} 21. Qf3 {[%clk 0:01:23.1]} 21... Nde5 {[%clk 0:00:36.9]} 22.
Qg3 {[%clk 0:01:23.1]} 22... Nxd3 {[%clk 0:00:33.1]} 23. Bc7 {[%clk 0:01:13]}
23... Qd7 {[%clk 0:00:19.3]} 24. Rad1 {[%clk 0:01:10.7]} 24... Ndb4 {[%clk
0:00:08.8]} 25. Nc5 {[%clk 0:01:07.1]} 25... Qe7 {[%clk 0:00:08.1]} 26. Bd6
{[%clk 0:01:06.5]} 26... Qe3+ {[%clk 0:00:07]} 27. Qxe3 {[%clk 0:01:01.3]} 27...
dxe3 {[%clk 0:00:07.8]} 28. Bxf8 {[%clk 0:00:56.1]} 28... e2 {[%clk 0:00:07.4]}
29. Bd6 {[%clk 0:00:54.7]} 29... exf1=Q+ {[%clk 0:00:06.9]} 30. Rxf1 {[%clk
0:00:53.4]} 30... b6 {[%clk 0:00:07.1]} 31. Na6 {[%clk 0:00:50.2]} 31... Rd8
{[%clk 0:00:07.2]} 32. Nxb4 {[%clk 0:00:48.8]} 32... Rxd6 {[%clk 0:00:05.4]} 33.
Nxc6 {[%clk 0:00:47.6]} 33... Rd2 {[%clk 0:00:04.9]} 34. Ne5 {[%clk 0:00:45.1]}
34... Rxa2 {[%clk 0:00:03.6]} 35. Nxg6 {[%clk 0:00:44.9]} 35... hxg6 {[%clk
0:00:03]} 36. Bd5 {[%clk 0:00:45.6]} 36... Rb2 {[%clk 0:00:02.2]} 37. Rxf7
{[%clk 0:00:44.8]} 37... Kh7 {[%clk 0:00:01.8]} 38. Rxa7 {[%clk 0:00:41.9]}
38... Rb1+ {[%clk 0:00:02.7]} 39. Kg2 {[%clk 0:00:41.5]} 39... Rxb3 {[%clk
0:00:03.6]} 40. Rb7 {[%clk 0:00:40.7]} 40... Rb2+ {[%clk 0:00:03.8]} 41. Kg3
{[%clk 0:00:41]} 41... Rb3+ {[%clk 0:00:03.9]} 42. Kg4 {[%clk 0:00:40.6]} 42...
Rb4 {[%clk 0:00:03.4]} 43. h4 {[%clk 0:00:40.2]} 43... Rb1 {[%clk 0:00:02.4]}
44. Kf4 {[%clk 0:00:40]} 44... Rf1+ {[%clk 0:00:02.3]} 45. Ke5 {[%clk
0:00:39.6]} 45... Re1+ {[%clk 0:00:02.5]} 46. Kd6 {[%clk 0:00:39.6]} 46... Rb1
{[%clk 0:00:02.3]} 47. Kc6 {[%clk 0:00:39.5]} 47... Rh1 {[%clk 0:00:02]} 1-0

[Event "*** Titled Tuesday Blitz"]
[Site "Chess.com"]
[Date "2020.12.01"]
[Round "2"]
[White "LPSupi"]
[Black "valeriocarnicelli"]
[Result "0-1"]
[WhiteElo "2898"]
[BlackElo "2574"]
[TimeControl "180+1"]
[EndTime "10:17:41 PST"]
[Termination "valeriocarnicelli won on time"]

1. e4 {[%clk 0:03:00.6]} 1... c5 {[%clk 0:02:58.9]} 2. Nf3 {[%clk 0:03:00.3]}
2... Nc6 {[%clk 0:02:59]} 3. Bb5 {[%clk 0:02:59.4]} 3... g6 {[%clk 0:02:58.1]}
4. Bxc6 {[%clk 0:02:58.5]} 4... dxc6 {[%clk 0:02:58]} 5. d3 {[%clk 0:02:58.2]}
5... Bg7 {[%clk 0:02:58.2]} 6. O-O {[%clk 0:02:52.1]} 6... e5 {[%clk 0:02:58.2]}
7. a3 {[%clk 0:02:47.6]} 7... Qe7 {[%clk 0:02:58.1]} 8. b4 {[%clk 0:02:43.3]}
8... cxb4 {[%clk 0:02:50.6]} 9. axb4 {[%clk 0:02:42.8]} 9... Nf6 {[%clk
0:02:40.1]} 10. Bb2 {[%clk 0:02:02.7]} 10... Nd7 {[%clk 0:02:35.1]} 11. d4
{[%clk 0:01:57.2]} 11... O-O {[%clk 0:02:20.1]} 12. d5 {[%clk 0:01:45.8]} 12...
cxd5 {[%clk 0:02:20.1]} 13. exd5 {[%clk 0:01:44.9]} 13... e4 {[%clk 0:02:14]}
14. Bxg7 {[%clk 0:01:42.1]} 14... Kxg7 {[%clk 0:02:14.9]} 15. Re1 {[%clk
0:01:16]} 15... Qxb4 {[%clk 0:01:57]} 16. c3 {[%clk 0:00:35.2]} 16... Qb2 {[%clk
0:01:29.7]} 17. Qd4+ {[%clk 0:00:34.9]} 17... Kg8 {[%clk 0:01:29.6]} 18. Nbd2
{[%clk 0:00:28.9]} 18... exf3 {[%clk 0:01:24.3]} 19. Ne4 {[%clk 0:00:20.5]}
19... Qb6 {[%clk 0:01:06.1]} 20. Qd2 {[%clk 0:00:10.4]} 20... Nf6 {[%clk
0:00:52.2]} 21. Ng5 {[%clk 0:00:09.1]} 21... Qd6 {[%clk 0:00:45.3]} 22. c4
{[%clk 0:00:08.5]} 22... b6 {[%clk 0:00:44.7]} 23. Nxf3 {[%clk 0:00:06.8]} 23...
Bd7 {[%clk 0:00:40.5]} 24. Ne5 {[%clk 0:00:06.4]} 24... Rfe8 {[%clk 0:00:37.9]}
25. f4 {[%clk 0:00:05.8]} 25... Qc5+ {[%clk 0:00:37.2]} 26. Kh1 {[%clk
0:00:05.9]} 26... Bf5 {[%clk 0:00:19.6]} 27. h3 {[%clk 0:00:05.7]} 27... Ne4
{[%clk 0:00:18.5]} 28. Qb2 {[%clk 0:00:06.2]} 28... Nf2+ {[%clk 0:00:15.6]} 29.
Kh2 {[%clk 0:00:06.3]} 29... Rxe5 {[%clk 0:00:12.8]} 30. fxe5 {[%clk 0:00:04.4]}
30... Nd3 {[%clk 0:00:12.4]} 31. Qc3 {[%clk 0:00:04.6]} 31... Nxe1 {[%clk
0:00:12.5]} 32. Rxe1 {[%clk 0:00:05.5]} 32... Re8 {[%clk 0:00:11.8]} 33. g4
{[%clk 0:00:03.4]} 33... Qf2+ {[%clk 0:00:11.1]} 34. Kh1 {[%clk 0:00:03.5]}
34... Bd3 {[%clk 0:00:06.6]} 0-1

[Event "*** Titled Tuesday Blitz"]
[Site "Chess.com"]
[Date "2020.12.01"]
[Round "2"]
[White "bratkoo"]
[Black "kirillshevchenko"]
[Result "1/2-1/2"]
[WhiteElo "2556"]
[BlackElo "2871"]
[TimeControl "180+1"]
[EndTime "10:17:41 PST"]
[Termination "Game drawn - insufficient material"]

1. e4 {[%clk 0:02:59.7]} 1... e5 {[%clk 0:02:58.1]} 2. Nf3 {[%clk 0:02:58.2]}
2... d6 {[%clk 0:02:58]} 3. d4 {[%clk 0:02:56.1]} 3... exd4 {[%clk 0:02:58.6]}
4. Nxd4 {[%clk 0:02:56.2]} 4... Nf6 {[%clk 0:02:59.2]} 5. Nc3 {[%clk 0:02:55.8]}
5... g6 {[%clk 0:02:59.8]} 6. Bc4 {[%clk 0:02:56]} 6... Bg7 {[%clk 0:02:59.6]}
7. O-O {[%clk 0:02:56]} 7... O-O {[%clk 0:02:59.8]} 8. h3 {[%clk 0:02:56.1]}
8... Re8 {[%clk 0:02:59.9]} 9. Re1 {[%clk 0:02:49.6]} 9... Nc6 {[%clk
0:03:00.3]} 10. Nxc6 {[%clk 0:02:44.8]} 10... bxc6 {[%clk 0:03:00.4]} 11. Bg5
{[%clk 0:02:44.9]} 11... h6 {[%clk 0:02:59.6]} 12. Bf4 {[%clk 0:02:44.8]} 12...
Nd7 {[%clk 0:02:53.6]} 13. Qd2 {[%clk 0:02:44.2]} 13... g5 {[%clk 0:02:47.3]}
14. Bg3 {[%clk 0:02:42.5]} 14... Ne5 {[%clk 0:02:44.9]} 15. Bb3 {[%clk
0:02:42.4]} 15... Ng6 {[%clk 0:02:34.4]} 16. Rad1 {[%clk 0:02:39.2]} 16... h5
{[%clk 0:02:30.6]} 17. e5 {[%clk 0:02:25.6]} 17... Nxe5 {[%clk 0:02:20.5]} 18.
f4 {[%clk 0:02:24.5]} 18... gxf4 {[%clk 0:02:08.5]} 19. Qxf4 {[%clk 0:02:24]}
19... Qf6 {[%clk 0:02:05.9]} 20. Qxf6 {[%clk 0:02:22.2]} 20... Bxf6 {[%clk
0:02:05.9]} 21. Rf1 {[%clk 0:02:20.9]} 21... Nd7 {[%clk 0:01:37.8]} 22. Bh4
{[%clk 0:02:12.5]} 22... Kg7 {[%clk 0:01:28.6]} 23. Rxf6 {[%clk 0:02:10.3]}
23... Nxf6 {[%clk 0:01:28.1]} 24. Rf1 {[%clk 0:02:10.9]} 24... Nd5 {[%clk
0:01:15.1]} 25. Nxd5 {[%clk 0:02:10.6]} 25... cxd5 {[%clk 0:01:14.9]} 26. Bxd5
{[%clk 0:02:10.1]} 26... Be6 {[%clk 0:01:13.9]} 27. Bxa8 {[%clk 0:02:07.8]}
27... Rxa8 {[%clk 0:01:14.8]} 28. Rf3 {[%clk 0:01:58.3]} 28... Bxa2 {[%clk
0:01:09.9]} 29. Rg3+ {[%clk 0:01:56.2]} 29... Kh7 {[%clk 0:01:06.8]} 30. b3
{[%clk 0:01:54]} 30... Rg8 {[%clk 0:00:59.3]} 31. Rc3 {[%clk 0:01:53.1]} 31...
c5 {[%clk 0:00:59.7]} 32. Be7 {[%clk 0:01:46.5]} 32... Rg6 {[%clk 0:01:00.1]}
33. Rd3 {[%clk 0:01:43.4]} 33... c4 {[%clk 0:00:54.3]} 34. bxc4 {[%clk
0:01:23.4]} 34... Bxc4 {[%clk 0:00:31.9]} 35. Rxd6 {[%clk 0:01:22.5]} 35... a5
{[%clk 0:00:29]} 36. Kf2 {[%clk 0:01:17.5]} 36... Re6 {[%clk 0:00:25.8]} 37.
Rxe6 {[%clk 0:01:12.6]} 37... fxe6 {[%clk 0:00:25.8]} 38. Ke3 {[%clk 0:01:11.8]}
38... Kg6 {[%clk 0:00:23.7]} 39. g4 {[%clk 0:01:10.3]} 39... hxg4 {[%clk
0:00:19.3]} 40. hxg4 {[%clk 0:01:09.9]} 40... Kf7 {[%clk 0:00:19.6]} 41. Ba3
{[%clk 0:01:08.3]} 41... Kf6 {[%clk 0:00:19]} 42. Kd4 {[%clk 0:01:06.8]} 42...
Bf1 {[%clk 0:00:18]} 43. Bc1 {[%clk 0:01:06.5]} 43... e5+ {[%clk 0:00:16.6]} 44.
Ke3 {[%clk 0:01:02.1]} 44... a4 {[%clk 0:00:15.5]} 45. Bb2 {[%clk 0:00:56.1]}
45... Bc4 {[%clk 0:00:07.7]} 46. Ke4 {[%clk 0:00:56]} 46... Kg5 {[%clk
0:00:05.3]} 47. Kxe5 {[%clk 0:00:51.6]} 47... Kxg4 {[%clk 0:00:05.2]} 48. Kd4
{[%clk 0:00:51.8]} 48... Bb3 {[%clk 0:00:05.5]} 49. cxb3 {[%clk 0:00:43.5]}
49... axb3 {[%clk 0:00:05.4]} 50. Kc3 {[%clk 0:00:44.4]} 50... Kf3 {[%clk
0:00:05.5]} 51. Kxb3 {[%clk 0:00:44.3]} 1/2-1/2

[Event "*** Titled Tuesday Blitz"]
[Site "Chess.com"]
[Date "2020.12.01"]
[Round "2"]
[White "Kaua18"]
[Black "Nikolaj_6"]
[Result "0-1"]
[WhiteElo "2322"]
[BlackElo "2626"]
[TimeControl "180+1"]
[EndTime "10:17:42 PST"]
[Termination "Nikolaj_6 won by resignation"]

1. e4 {[%clk 0:03:00.7]} 1... c5 {[%clk 0:02:58.3]} 2. Nf3 {[%clk 0:03:00.9]}
2... d6 {[%clk 0:02:58.6]} 3. d4 {[%clk 0:02:59.9]} 3... cxd4 {[%clk 0:02:59.5]}
4. Nxd4 {[%clk 0:03:00.8]} 4... Nf6 {[%clk 0:02:59.8]} 5. Nc3 {[%clk 0:02:58.5]}
5... a6 {[%clk 0:03:00]} 6. Bd3 {[%clk 0:02:53.8]} 6... Nc6 {[%clk 0:02:57.1]}
7. Nxc6 {[%clk 0:02:49.8]} 7... bxc6 {[%clk 0:02:58]} 8. e5 {[%clk 0:02:49]}
8... dxe5 {[%clk 0:02:57.3]} 9. O-O {[%clk 0:02:49.5]} 9... e6 {[%clk
0:02:49.1]} 10. Qe2 {[%clk 0:02:49.3]} 10... Qc7 {[%clk 0:02:44.8]} 11. Re1
{[%clk 0:02:46.6]} 11... Bd6 {[%clk 0:02:42.9]} 12. Bg5 {[%clk 0:02:39.9]} 12...
Nd5 {[%clk 0:02:30.6]} 13. Ne4 {[%clk 0:02:38.6]} 13... Be7 {[%clk 0:02:30.4]}
14. Bd2 {[%clk 0:02:32.8]} 14... O-O {[%clk 0:02:28.9]} 15. Ng5 {[%clk
0:02:19.9]} 15... Bxg5 {[%clk 0:01:54.3]} 16. Bxg5 {[%clk 0:02:20.8]} 16... f6
{[%clk 0:01:52.9]} 17. Bd2 {[%clk 0:02:06.1]} 17... Kh8 {[%clk 0:01:47.2]} 18.
Qh5 {[%clk 0:02:02.9]} 18... f5 {[%clk 0:01:44.4]} 19. c4 {[%clk 0:01:32]} 19...
Nf6 {[%clk 0:01:38.2]} 20. Qe2 {[%clk 0:01:29.3]} 20... e4 {[%clk 0:01:38.1]}
21. Bc2 {[%clk 0:01:29.3]} 21... e5 {[%clk 0:01:36]} 22. c5 {[%clk 0:01:25.3]}
22... Be6 {[%clk 0:01:33.5]} 23. f3 {[%clk 0:01:14.8]} 23... Bd5 {[%clk
0:01:27.7]} 24. Bg5 {[%clk 0:01:10.1]} 24... exf3 {[%clk 0:01:24.7]} 25. Qxe5
{[%clk 0:01:10]} 25... Qxe5 {[%clk 0:01:24]} 26. Rxe5 {[%clk 0:01:10.9]} 26...
Be4 {[%clk 0:01:07.1]} 27. Bxe4 {[%clk 0:00:37.9]} 27... Nxe4 {[%clk 0:01:06.6]}
28. Be7 {[%clk 0:00:36.5]} 28... f2+ {[%clk 0:01:02.8]} 29. Kf1 {[%clk
0:00:35.8]} 29... Rfe8 {[%clk 0:01:01.7]} 30. Rd1 {[%clk 0:00:22.6]} 30... Rab8
{[%clk 0:00:54.1]} 31. b3 {[%clk 0:00:20.6]} 31... Kg8 {[%clk 0:00:52]} 32. g4
{[%clk 0:00:20.2]} 32... Rb7 {[%clk 0:00:49.2]} 33. Rc1 {[%clk 0:00:19]} 33...
Rbxe7 {[%clk 0:00:48.8]} 34. Rxf5 {[%clk 0:00:18.6]} 34... g6 {[%clk 0:00:42.8]}
35. Rf4 {[%clk 0:00:18.2]} 35... Re5 {[%clk 0:00:39.5]} 36. b4 {[%clk
0:00:17.6]} 36... g5 {[%clk 0:00:37.4]} 37. Rf5 {[%clk 0:00:16.8]} 37... Rxf5
{[%clk 0:00:37.6]} 38. gxf5 {[%clk 0:00:17.7]} 38... Kf7 {[%clk 0:00:34.6]} 39.
Rd1 {[%clk 0:00:18]} 39... Kf6 {[%clk 0:00:34.4]} 40. Rd7 {[%clk 0:00:17.3]}
40... Re7 {[%clk 0:00:33.6]} 41. Rd8 {[%clk 0:00:12.7]} 41... Kxf5 {[%clk
0:00:33.7]} 42. Ra8 {[%clk 0:00:12.4]} 42... Rd7 {[%clk 0:00:33.2]} 43. Rf8+
{[%clk 0:00:10.3]} 43... Kg6 {[%clk 0:00:32]} 44. a4 {[%clk 0:00:09.2]} 44...
Rd1+ {[%clk 0:00:31.2]} 45. Kg2 {[%clk 0:00:09.5]} 45... Rg1+ {[%clk 0:00:30.6]}
46. Kh3 {[%clk 0:00:08.5]} 0-1

[Event "*** Titled Tuesday Blitz"]
[Site "Chess.com"]
[Date "2020.12.01"]
[Round "2"]
[White "hansen"]
[Black "MatyChess1"]
[Result "1-0"]
[WhiteElo "2923"]
[BlackElo "2562"]
[TimeControl "180+1"]
[EndTime "10:17:43 PST"]
[Termination "hansen won by resignation"]

1. e4 {[%clk 0:02:59.7]} 1... c5 {[%clk 0:02:57.6]} 2. Nf3 {[%clk 0:02:59.3]}
2... g6 {[%clk 0:02:57.7]} 3. Bc4 {[%clk 0:02:58.5]} 3... Bg7 {[%clk 0:02:57.2]}
4. O-O {[%clk 0:02:58.5]} 4... e6 {[%clk 0:02:57.3]} 5. Re1 {[%clk 0:02:58.8]}
5... Ne7 {[%clk 0:02:57.8]} 6. d4 {[%clk 0:02:57.9]} 6... cxd4 {[%clk
0:02:50.2]} 7. Nxd4 {[%clk 0:02:55.4]} 7... O-O {[%clk 0:02:50.7]} 8. Nc3 {[%clk
0:02:55.7]} 8... d5 {[%clk 0:02:45.7]} 9. exd5 {[%clk 0:02:53.3]} 9... exd5
{[%clk 0:02:46.6]} 10. Bb3 {[%clk 0:02:53.8]} 10... Nbc6 {[%clk 0:02:46.7]} 11.
Be3 {[%clk 0:02:54]} 11... Ne5 {[%clk 0:02:29.5]} 12. h3 {[%clk 0:02:52.1]}
12... Nc4 {[%clk 0:02:27]} 13. Bg5 {[%clk 0:02:45.7]} 13... f6 {[%clk
0:01:57.9]} 14. Bc1 {[%clk 0:02:03.5]} 14... Kh8 {[%clk 0:01:19.1]} 15. Qe2
{[%clk 0:02:00.1]} 15... Nc6 {[%clk 0:01:05]} 16. Nxc6 {[%clk 0:01:56.1]} 16...
bxc6 {[%clk 0:01:05.6]} 17. Bxc4 {[%clk 0:01:57]} 17... dxc4 {[%clk 0:01:06.4]}
18. Qxc4 {[%clk 0:01:57.5]} 18... Qb6 {[%clk 0:01:02.5]} 19. Be3 {[%clk
0:01:43.1]} 19... Qxb2 {[%clk 0:00:53.8]} 20. Bc5 {[%clk 0:01:40.4]} 20... Rg8
{[%clk 0:00:48.5]} 21. Ne4 {[%clk 0:01:12.4]} 21... Qb5 {[%clk 0:00:25]} 22. Qd4
{[%clk 0:00:59]} 22... h6 {[%clk 0:00:07.7]} 23. Nd6 {[%clk 0:00:53]} 23... Qa6
{[%clk 0:00:06.8]} 24. Re7 {[%clk 0:00:49]} 24... Bf5 {[%clk 0:00:06.8]} 25. Qh4
{[%clk 0:00:22.3]} 25... Kh7 {[%clk 0:00:06.2]} 26. Nf7 {[%clk 0:00:14]} 26...
g5 {[%clk 0:00:03.8]} 27. Qg3 {[%clk 0:00:09.1]} 27... Bg6 {[%clk 0:00:04.3]}
28. Rae1 {[%clk 0:00:08.6]} 28... Qc4 {[%clk 0:00:02.9]} 29. Qc7 {[%clk
0:00:02.8]} 29... Rac8 {[%clk 0:00:02.5]} 30. Qxa7 {[%clk 0:00:02.7]} 30... Ra8
{[%clk 0:00:02.2]} 31. Nd6 {[%clk 0:00:03.3]} 31... Rxa7 {[%clk 0:00:01.7]} 32.
Nxc4 {[%clk 0:00:03.9]} 32... Rxe7 {[%clk 0:00:02.1]} 33. Rxe7 {[%clk
0:00:03.7]} 33... Re8 {[%clk 0:00:03]} 34. Rxe8 {[%clk 0:00:03.6]} 34... Bxe8
{[%clk 0:00:03.9]} 35. Nb6 {[%clk 0:00:04.1]} 35... f5 {[%clk 0:00:04.2]} 36. a4
{[%clk 0:00:04.6]} 36... Kg6 {[%clk 0:00:03.9]} 37. a5 {[%clk 0:00:05]} 37...
Bd4 {[%clk 0:00:03.9]} 38. Bxd4 {[%clk 0:00:05]} 38... Kf7 {[%clk 0:00:03.8]}
39. a6 {[%clk 0:00:05.2]} 39... Ke6 {[%clk 0:00:04.7]} 40. Bc5 {[%clk
0:00:05.6]} 1-0

[Event "*** Titled Tuesday Blitz"]
[Site "Chess.com"]
[Date "2020.12.01"]
[Round "2"]
[White "zurzan"]
[Black "Kislov_Oleg"]
[Result "0-1"]
[WhiteElo "2070"]
[BlackElo "2370"]
[TimeControl "180+1"]
[EndTime "10:17:44 PST"]
[Termination "Kislov_Oleg won by checkmate"]

1. f4 {[%clk 0:03:00.2]} 1... e5 {[%clk 0:02:54.1]} 2. fxe5 {[%clk 0:02:58.9]}
2... d6 {[%clk 0:02:53.8]} 3. exd6 {[%clk 0:02:59.8]} 3... Bxd6 {[%clk
0:02:53.6]} 4. Nf3 {[%clk 0:03:00.7]} 4... g5 {[%clk 0:02:52.7]} 5. g3 {[%clk
0:03:01.2]} 5... g4 {[%clk 0:02:50.5]} 6. Nh4 {[%clk 0:03:01.2]} 6... Ne7 {[%clk
0:02:44.6]} 7. d4 {[%clk 0:03:00.8]} 7... Ng6 {[%clk 0:02:40.9]} 8. Ng2 {[%clk
0:03:00.3]} 8... h5 {[%clk 0:02:39.1]} 9. Qd3 {[%clk 0:02:57.5]} 9... h4 {[%clk
0:02:33.1]} 10. Bf4 {[%clk 0:02:44.1]} 10... hxg3 {[%clk 0:02:20.8]} 11. Bxd6
{[%clk 0:02:39.4]} 11... Qxd6 {[%clk 0:02:18.7]} 12. Nc3 {[%clk 0:02:33.3]}
12... Rxh2 {[%clk 0:02:14.4]} 13. Rg1 {[%clk 0:02:29]} 13... Nc6 {[%clk
0:01:34.7]} 14. Ne4 {[%clk 0:02:27.7]} 14... Qxd4 {[%clk 0:01:25.5]} 15. Qxd4
{[%clk 0:02:27.5]} 15... Nxd4 {[%clk 0:01:25.7]} 16. O-O-O {[%clk 0:02:25.9]}
16... Nf5 {[%clk 0:01:17.3]} 17. e3 {[%clk 0:02:18.3]} 17... Be6 {[%clk
0:01:14.5]} 18. Nc5 {[%clk 0:02:08.3]} 18... Ne5 {[%clk 0:00:51.6]} 19. Nxb7
{[%clk 0:01:51.6]} 19... Nf3 {[%clk 0:00:47.9]} 20. Bb5+ {[%clk 0:01:50.8]}
20... Ke7 {[%clk 0:00:44.2]} 21. e4 {[%clk 0:01:25]} 21... Nxg1 {[%clk 0:00:26]}
22. exf5 {[%clk 0:01:24.5]} 22... Rxg2 {[%clk 0:00:26.2]} 23. fxe6 {[%clk
0:01:24.4]} 23... fxe6 {[%clk 0:00:24.8]} 24. Nc5 {[%clk 0:01:22.1]} 24... Nf3
{[%clk 0:00:19]} 25. Ne4 {[%clk 0:01:10.9]} 25... Rg1 {[%clk 0:00:18.2]} 26.
Rxg1 {[%clk 0:00:39]} 26... Nxg1 {[%clk 0:00:19.1]} 27. Nxg3 {[%clk 0:00:38]}
27... Rf8 {[%clk 0:00:18.7]} 28. Ne4 {[%clk 0:00:32.9]} 28... Nf3 {[%clk
0:00:15.5]} 29. c4 {[%clk 0:00:29.5]} 29... Rh8 {[%clk 0:00:15.4]} 30. Ng3
{[%clk 0:00:28.1]} 30... Rh3 {[%clk 0:00:15.1]} 31. Nf1 {[%clk 0:00:25.3]} 31...
Rh1 {[%clk 0:00:11.2]} 32. c5 {[%clk 0:00:24.1]} 32... Nh2 {[%clk 0:00:11.6]}
33. Kd1 {[%clk 0:00:21.6]} 33... Nxf1 {[%clk 0:00:11.7]} 34. Ke2 {[%clk
0:00:22.1]} 34... Ng3+ {[%clk 0:00:11.5]} 35. Kf2 {[%clk 0:00:22.1]} 35... Nf5
{[%clk 0:00:11.8]} 36. Kg2 {[%clk 0:00:22.2]} 36... Rb1 {[%clk 0:00:11.8]} 37.
b3 {[%clk 0:00:21.5]} 37... Rb2+ {[%clk 0:00:12.2]} 38. Kf1 {[%clk 0:00:19.6]}
38... Kf6 {[%clk 0:00:12.7]} 39. Be2 {[%clk 0:00:14.5]} 39... Ng3+ {[%clk
0:00:12.2]} 40. Kg2 {[%clk 0:00:13]} 40... Nxe2 {[%clk 0:00:11.9]} 41. Kf1
{[%clk 0:00:12.5]} 41... Nf4 {[%clk 0:00:11.5]} 42. Kg1 {[%clk 0:00:12.3]} 42...
g3 {[%clk 0:00:12]} 43. a4 {[%clk 0:00:11.3]} 43... Rb1# {[%clk 0:00:12.8]} 0-1